[Event "Titled Tuesday Blitz January 31 Early 2023"]
[White "Dos Santos, Emmanuel"]
[Black "Mosquera, Miguel"]
[WhiteFideId "2103559"]
[BlackFideId "4401131"]
[WhiteElo "2261"]
[BlackElo "2371"]
[Result "1-0"]
[Round "03"]
[TimeControl "180+2"]
[Date "2023.01.31"]
[WhiteClock "0:00:01"]
[BlackClock "0:00:01"]

1. e4 {[%clk 0:03:00]}  c5 {[%clk 0:02:53]} 2. Nf3 {[%clk 0:03:00]}  d6 {[%clk 0:02:49]} 3. d4 {[%clk 0:03:00]}  cxd4 {[%clk 0:02:48]} 4. Qxd4 {[%clk 0:03:01]}  Nc6 {[%clk 0:02:25]} 5. Bb5 {[%clk 0:03:00]}  Bd7 {[%clk 0:02:24]} 6. Qd3 {[%clk 0:02:44]}  Nf6 {[%clk 0:02:16]} 7. O-O {[%clk 0:02:40]}  e6 {[%clk 0:02:11]} 8. c4 {[%clk 0:02:28]}  Be7 {[%clk 0:02:10]} 9. Nc3 {[%clk 0:02:27]}  O-O {[%clk 0:02:09]} 10. Bg5 {[%clk 0:02:22]}  Ne5 {[%clk 0:01:22]} 11. Nxe5 {[%clk 0:02:03]}  dxe5 {[%clk 0:01:23]} 12. Bxf6 {[%clk 0:01:41]}  Bxb5 {[%clk 0:00:55]} 13. Qxd8 {[%clk 0:01:34]}  Bxd8 {[%clk 0:00:56]} 14. Bxd8 {[%clk 0:01:33]}  Bxc4 {[%clk 0:00:55]} 15. Bc7 {[%clk 0:01:03]}  Bxf1 {[%clk 0:00:47]} 16. Kxf1 {[%clk 0:01:04]}  f6 {[%clk 0:00:47]} 17. Rd1 {[%clk 0:00:56]}  Rac8 {[%clk 0:00:42]} 18. Rd7 {[%clk 0:00:40]}  Rf7 {[%clk 0:00:41]} 19. Rxf7 {[%clk 0:00:35]}  Kxf7 {[%clk 0:00:41]} 20. Bd6 {[%clk 0:00:36]}  Rd8 {[%clk 0:00:27]} 21. Ba3 {[%clk 0:00:34]}  a6 {[%clk 0:00:25]} 22. Ke2 {[%clk 0:00:30]}  Rd7 {[%clk 0:00:19]} 23. Na4 {[%clk 0:00:21]}  Rd4 {[%clk 0:00:17]} 24. Nc3 {[%clk 0:00:19]}  b5 {[%clk 0:00:16]} 25. Bc5 {[%clk 0:00:18]}  Rc4 {[%clk 0:00:16]} 26. Be3 {[%clk 0:00:09]}  b4 {[%clk 0:00:15]} 27. Kd3 {[%clk 0:00:10]}  Rc8 {[%clk 0:00:10]} 28. Na4 {[%clk 0:00:08]}  a5 {[%clk 0:00:05]} 29. b3 {[%clk 0:00:08]}  Rc6 {[%clk 0:00:05]} 30. Nc5 {[%clk 0:00:08]}  f5 {[%clk 0:00:04]} 31. f3 {[%clk 0:00:08]}  g5 {[%clk 0:00:04]} 32. g3 {[%clk 0:00:08]}  f4 {[%clk 0:00:04]} 33. gxf4 {[%clk 0:00:08]}  exf4 {[%clk 0:00:05]} 34. Bf2 {[%clk 0:00:08]}  Rd6+ {[%clk 0:00:05]} 35. Ke2 {[%clk 0:00:07]}  Rc6 {[%clk 0:00:05]} 36. e5 {[%clk 0:00:07]}  Kg6 {[%clk 0:00:04]} 37. Kd3 {[%clk 0:00:07]}  Kf5 {[%clk 0:00:04]} 38. Bd4 {[%clk 0:00:06]}  Rc8 {[%clk 0:00:03]} 39. Kc4 {[%clk 0:00:06]}  Rd8 {[%clk 0:00:03]} 40. Nb7 {[%clk 0:00:01]}  Rd5 {[%clk 0:00:02]} 41. Nd6+ {[%clk 0:00:01]}  Kg6 {[%clk 0:00:01]} 42. Ne4 {[%clk 0:00:01]} 1-0


[Site "https://www.chess.com"]

[Event "Titled Tuesday Blitz January 31 Early 2023"]
[White "Hrbek, Stepan"]
[Black "Sanchez, Robert"]
[WhiteFideId "393479"]
[BlackFideId "2034360"]
[WhiteElo "2306"]
[BlackElo "1966"]
[Result "0-1"]
[Round "03"]
[TimeControl "180+2"]
[Date "2023.01.31"]
[WhiteClock "0:00:31"]
[BlackClock "0:00:57"]

1. Nf3 {[%clk 0:03:00]}  d5 {[%clk 0:02:59]} 2. g3 {[%clk 0:03:00]}  Nc6 {[%clk 0:02:57]} 3. d4 {[%clk 0:03:00]}  Bf5 {[%clk 0:02:57]} 4. c3 {[%clk 0:03:00]}  Qd7 {[%clk 0:02:56]} 5. h3 {[%clk 0:02:58]}  O-O-O {[%clk 0:02:53]} 6. Bg2 {[%clk 0:02:58]}  f6 {[%clk 0:02:53]} 7. g4 {[%clk 0:02:33]}  Be4 {[%clk 0:02:48]} 8. Nbd2 {[%clk 0:02:27]}  Bg6 {[%clk 0:02:48]} 9. Nh4 {[%clk 0:02:19]}  Bf7 {[%clk 0:02:47]} 10. e4 {[%clk 0:01:56]}  e5 {[%clk 0:02:44]} 11. dxe5 {[%clk 0:01:57]}  Nxe5 {[%clk 0:02:40]} 12. Qe2 {[%clk 0:01:55]}  h5 {[%clk 0:02:28]} 13. Nf5 {[%clk 0:01:49]}  hxg4 {[%clk 0:02:23]} 14. hxg4 {[%clk 0:01:50]}  Rxh1+ {[%clk 0:02:22]} 15. Bxh1 {[%clk 0:01:51]}  g6 {[%clk 0:02:19]} 16. Ne3 {[%clk 0:01:51]}  d4 {[%clk 0:02:12]} 17. cxd4 {[%clk 0:01:37]}  Qxd4 {[%clk 0:02:11]} 18. Nb3 {[%clk 0:01:30]}  Bb4+ {[%clk 0:02:01]} 19. Kf1 {[%clk 0:01:28]}  Qb6 {[%clk 0:01:54]} 20. Nd5 {[%clk 0:01:17]}  Qd6 {[%clk 0:01:41]} 21. Be3 {[%clk 0:01:09]}  Ne7 {[%clk 0:01:27]} 22. Nxb4 {[%clk 0:01:05]}  Bc4 {[%clk 0:01:22]} 23. Nd5 {[%clk 0:01:00]}  Nxd5 {[%clk 0:01:19]} 24. exd5 {[%clk 0:00:58]}  Qa6 {[%clk 0:01:18]} 25. Qxc4 {[%clk 0:00:53]}  Qxc4+ {[%clk 0:01:17]} 26. Kg1 {[%clk 0:00:53]}  Qxg4+ {[%clk 0:01:16]} 27. Kf1 {[%clk 0:00:53]}  Nc4 {[%clk 0:01:10]} 28. Bg2 {[%clk 0:00:45]}  f5 {[%clk 0:01:04]} 29. Bd4 {[%clk 0:00:36]}  Nd2+ {[%clk 0:00:57]} 30. Kg1 {[%clk 0:00:34]}  Nxb3 {[%clk 0:00:57]} 31. Bf6 {[%clk 0:00:31]}  Nxa1 {[%clk 0:00:57]} 0-1


[Site "https://www.chess.com"]

[Event "Titled Tuesday Blitz January 31 Early 2023"]
[White "Estrada Nieto, Julian"]
[Black "Hernandez Bonilla, Amelia"]
[WhiteFideId "5101018"]
[BlackFideId "3900193"]
[WhiteElo "2215"]
[BlackElo "1960"]
[Result "1-0"]
[Round "03"]
[TimeControl "180+2"]
[Date "2023.01.31"]
[WhiteClock "0:02:05"]
[BlackClock "0:00:58"]

1. e4 {[%clk 0:03:00]}  c5 {[%clk 0:02:59]} 2. Nf3 {[%clk 0:03:01]}  d6 {[%clk 0:02:59]} 3. Bb5+ {[%clk 0:03:00]}  Nd7 {[%clk 0:02:59]} 4. d4 {[%clk 0:03:00]}  cxd4 {[%clk 0:02:59]} 5. Qxd4 {[%clk 0:03:01]}  Nf6 {[%clk 0:02:58]} 6. Bg5 {[%clk 0:02:59]}  a6 {[%clk 0:02:58]} 7. Bxd7+ {[%clk 0:02:59]}  Bxd7 {[%clk 0:02:59]} 8. Nc3 {[%clk 0:02:59]}  e6 {[%clk 0:02:55]} 9. O-O-O {[%clk 0:02:58]}  Be7 {[%clk 0:02:53]} 10. e5 {[%clk 0:02:58]}  dxe5 {[%clk 0:02:51]} 11. Nxe5 {[%clk 0:02:59]}  Bc6 {[%clk 0:02:38]} 12. Nxc6 {[%clk 0:02:59]}  bxc6 {[%clk 0:02:37]} 13. Bxf6 {[%clk 0:02:59]}  Bxf6 {[%clk 0:02:36]} 14. Qc5 {[%clk 0:03:00]}  Qc7 {[%clk 0:02:28]} 15. Ne4 {[%clk 0:02:59]}  Be7 {[%clk 0:02:23]} 16. Nd6+ {[%clk 0:02:58]}  Bxd6 {[%clk 0:02:23]} 17. Qxd6 {[%clk 0:02:57]}  Qxd6 {[%clk 0:02:18]} 18. Rxd6 {[%clk 0:02:57]}  Rc8 {[%clk 0:02:17]} 19. Rhd1 {[%clk 0:02:57]}  O-O {[%clk 0:02:11]} 20. Rd7 {[%clk 0:02:55]}  Rb8 {[%clk 0:02:01]} 21. c4 {[%clk 0:02:54]}  Rb4 {[%clk 0:01:53]} 22. b3 {[%clk 0:02:54]}  a5 {[%clk 0:01:53]} 23. Ra7 {[%clk 0:02:50]}  a4 {[%clk 0:01:51]} 24. Rxa4 {[%clk 0:02:37]}  Rxa4 {[%clk 0:01:51]} 25. bxa4 {[%clk 0:02:37]}  Ra8 {[%clk 0:01:48]} 26. Kb2 {[%clk 0:02:36]}  Kf8 {[%clk 0:01:47]} 27. Kb3 {[%clk 0:02:31]}  Rb8+ {[%clk 0:01:43]} 28. Ka3 {[%clk 0:02:30]}  Ke7 {[%clk 0:01:42]} 29. c5 {[%clk 0:02:29]}  e5 {[%clk 0:01:27]} 30. Rd6 {[%clk 0:02:28]}  Rc8 {[%clk 0:01:27]} 31. a5 {[%clk 0:02:27]}  f5 {[%clk 0:01:24]} 32. Ka4 {[%clk 0:02:23]}  e4 {[%clk 0:01:22]} 33. a6 {[%clk 0:02:19]}  g5 {[%clk 0:01:10]} 34. Ka5 {[%clk 0:02:12]}  Ra8 {[%clk 0:00:59]} 35. Kb6 {[%clk 0:02:06]}  f4 {[%clk 0:00:58]} 36. Rd4 {[%clk 0:02:05]} 1-0


[Site "https://www.chess.com"]

[Event "Titled Tuesday Blitz January 31 Early 2023"]
[White "Kornyukov, Alexey"]
[Black "Sai Han Thiha"]
[WhiteFideId "4150457"]
[BlackFideId "13012290"]
[WhiteElo "2452"]
[BlackElo "2070"]
[Result "1-0"]
[Round "03"]
[TimeControl "180+2"]
[Date "2023.01.31"]
[WhiteClock "0:00:20"]
[BlackClock "0:00:14"]

1. e4 {[%clk 0:03:00]}  c6 {[%clk 0:03:00]} 2. d4 {[%clk 0:02:58]}  d5 {[%clk 0:03:00]} 3. f3 {[%clk 0:02:57]}  dxe4 {[%clk 0:03:01]} 4. fxe4 {[%clk 0:02:56]}  e5 {[%clk 0:03:02]} 5. Nf3 {[%clk 0:02:54]}  Bg4 {[%clk 0:03:02]} 6. dxe5 {[%clk 0:02:53]}  Qxd1+ {[%clk 0:02:47]} 7. Kxd1 {[%clk 0:02:52]}  Nd7 {[%clk 0:02:48]} 8. Bf4 {[%clk 0:02:35]}  Ne7 {[%clk 0:02:43]} 9. h3 {[%clk 0:02:32]}  Bxf3+ {[%clk 0:02:41]} 10. gxf3 {[%clk 0:02:30]}  Ng6 {[%clk 0:02:42]} 11. Bg3 {[%clk 0:02:28]}  Ndxe5 {[%clk 0:02:37]} 12. f4 {[%clk 0:02:26]}  O-O-O+ {[%clk 0:02:27]} 13. Ke1 {[%clk 0:02:20]}  Nf3+ {[%clk 0:02:15]} 14. Kf2 {[%clk 0:02:17]}  Nd4 {[%clk 0:02:15]} 15. Bd3 {[%clk 0:02:13]}  Bc5 {[%clk 0:02:16]} 16. Kg2 {[%clk 0:02:10]}  f5 {[%clk 0:01:37]} 17. e5 {[%clk 0:02:03]}  Rhf8 {[%clk 0:01:36]} 18. c3 {[%clk 0:02:00]}  Ne6 {[%clk 0:01:36]} 19. Bc4 {[%clk 0:01:58]}  Nexf4+ {[%clk 0:01:32]} 20. Bxf4 {[%clk 0:01:58]}  Nxf4+ {[%clk 0:01:30]} 21. Kf3 {[%clk 0:01:57]}  g5 {[%clk 0:01:26]} 22. h4 {[%clk 0:01:50]}  h6 {[%clk 0:00:49]} 23. hxg5 {[%clk 0:01:17]}  hxg5 {[%clk 0:00:50]} 24. b4 {[%clk 0:01:14]}  b5 {[%clk 0:00:42]} 25. Bxb5 {[%clk 0:01:05]}  cxb5 {[%clk 0:00:39]} 26. bxc5 {[%clk 0:01:05]}  Rd3+ {[%clk 0:00:38]} 27. Kf2 {[%clk 0:01:03]}  g4 {[%clk 0:00:38]} 28. Na3 {[%clk 0:01:01]}  g3+ {[%clk 0:00:38]} 29. Kg1 {[%clk 0:00:59]}  Rd2 {[%clk 0:00:14]} 30. Nxb5 {[%clk 0:00:55]}  Rf2 {[%clk 0:00:09]} 31. Re1 {[%clk 0:00:47]}  Ne2+ {[%clk 0:00:09]} 32. Rxe2 {[%clk 0:00:46]}  Rxe2 {[%clk 0:00:10]} 33. Rh7 {[%clk 0:00:41]}  Rxe5 {[%clk 0:00:10]} 34. Nxa7+ {[%clk 0:00:40]}  Kd8 {[%clk 0:00:09]} 35. Nc6+ {[%clk 0:00:39]}  Kc8 {[%clk 0:00:09]} 36. Nxe5 {[%clk 0:00:39]}  f4 {[%clk 0:00:09]} 37. Nf3 {[%clk 0:00:39]}  Rf5 {[%clk 0:00:09]} 38. Nd4 {[%clk 0:00:37]}  Rxc5 {[%clk 0:00:10]} 39. Rh8+ {[%clk 0:00:33]}  Kb7 {[%clk 0:00:09]} 40. Rh7+ {[%clk 0:00:32]}  Ka6 {[%clk 0:00:09]} 41. Rh6+ {[%clk 0:00:32]}  Ka7 {[%clk 0:00:09]} 42. Ne2 {[%clk 0:00:30]}  f3 {[%clk 0:00:08]} 43. Nxg3 {[%clk 0:00:29]}  Rxc3 {[%clk 0:00:08]} 44. Rh2 {[%clk 0:00:26]}  Rc1+ {[%clk 0:00:08]} 45. Kf2 {[%clk 0:00:25]}  Rc2+ {[%clk 0:00:08]} 46. Kg1 {[%clk 0:00:24]}  Rc1+ {[%clk 0:00:08]} 47. Nf1 {[%clk 0:00:24]}  Kb6 {[%clk 0:00:08]} 48. Rf2 {[%clk 0:00:23]}  Rc3 {[%clk 0:00:09]} 49. Kh2 {[%clk 0:00:21]}  Ra3 {[%clk 0:00:08]} 50. Kg3 {[%clk 0:00:19]}  Kc5 {[%clk 0:00:08]} 51. Nh2 {[%clk 0:00:20]}  Kd4 {[%clk 0:00:09]} 52. Nxf3+ {[%clk 0:00:20]}  Ke4 {[%clk 0:00:09]} 53. Kg2 {[%clk 0:00:19]}  Ke3 {[%clk 0:00:08]} 54. Ne5 {[%clk 0:00:18]}  Ra5 {[%clk 0:00:08]} 55. Nc4+ {[%clk 0:00:18]}  Kd4 {[%clk 0:00:07]} 56. Nxa5 {[%clk 0:00:19]}  Kc5 {[%clk 0:00:08]} 57. Nb3+ {[%clk 0:00:19]}  Kb5 {[%clk 0:00:09]} 58. a4+ {[%clk 0:00:19]}  Kb4 {[%clk 0:00:10]} 59. a5 {[%clk 0:00:19]}  Kb5 {[%clk 0:00:10]} 60. a6 {[%clk 0:00:19]}  Kxa6 {[%clk 0:00:11]} 61. Rf6+ {[%clk 0:00:20]}  Kb5 {[%clk 0:00:11]} 62. Kf3 {[%clk 0:00:20]}  Kc4 {[%clk 0:00:12]} 63. Ke3 {[%clk 0:00:20]}  Kxb3 {[%clk 0:00:13]} 64. Rc6 {[%clk 0:00:20]}  Kb4 {[%clk 0:00:13]} 65. Kd4 {[%clk 0:00:21]}  Kb5 {[%clk 0:00:14]} 66. Rc1 {[%clk 0:00:20]} 1-0


[Site "https://www.chess.com"]

[Event "Titled Tuesday Blitz January 31 Early 2023"]
[White "Sailer, Mike"]
[Black "Gjestemoen-VonHirsch, Andre"]
[WhiteFideId "2012901"]
[BlackFideId "1539531"]
[WhiteElo "2109"]
[BlackElo "2314"]
[Result "0-1"]
[Round "03"]
[TimeControl "180+2"]
[Date "2023.01.31"]
[WhiteClock "0:00:04"]
[BlackClock "0:00:11"]

1. d4 {[%clk 0:03:00]}  g6 {[%clk 0:02:58]} 2. Nf3 {[%clk 0:03:00]}  Bg7 {[%clk 0:02:55]} 3. Bf4 {[%clk 0:03:01]}  c5 {[%clk 0:02:54]} 4. e3 {[%clk 0:03:01]}  Qb6 {[%clk 0:02:49]} 5. Nc3 {[%clk 0:02:58]}  d6 {[%clk 0:02:42]} 6. Rb1 {[%clk 0:02:55]}  Nc6 {[%clk 0:02:40]} 7. h3 {[%clk 0:02:50]}  cxd4 {[%clk 0:02:30]} 8. exd4 {[%clk 0:02:49]}  Nxd4 {[%clk 0:02:26]} 9. Nxd4 {[%clk 0:02:48]}  Qxd4 {[%clk 0:02:17]} 10. Bb5+ {[%clk 0:02:47]}  Bd7 {[%clk 0:02:17]} 11. Bxd7+ {[%clk 0:02:47]}  Kxd7 {[%clk 0:02:18]} 12. Qf3 {[%clk 0:02:43]}  Qb4 {[%clk 0:02:03]} 13. O-O {[%clk 0:02:40]}  Nf6 {[%clk 0:02:00]} 14. a3 {[%clk 0:02:25]}  Qb6 {[%clk 0:01:56]} 15. Rfe1 {[%clk 0:01:56]}  Rac8 {[%clk 0:01:41]} 16. Rbd1 {[%clk 0:01:51]}  Qc6 {[%clk 0:01:18]} 17. Qe3 {[%clk 0:01:21]}  Rhe8 {[%clk 0:01:12]} 18. Qxa7 {[%clk 0:01:19]}  Nh5 {[%clk 0:01:12]} 19. Bh2 {[%clk 0:01:03]}  Bxc3 {[%clk 0:01:00]} 20. bxc3 {[%clk 0:01:01]}  Ra8 {[%clk 0:00:57]} 21. Qe3 {[%clk 0:00:55]}  Ng7 {[%clk 0:00:52]} 22. Qh6 {[%clk 0:00:50]}  Nf5 {[%clk 0:00:36]} 23. Qxh7 {[%clk 0:00:48]}  Qc4 {[%clk 0:00:35]} 24. g4 {[%clk 0:00:16]}  Rh8 {[%clk 0:00:33]} 25. Qxh8 {[%clk 0:00:13]}  Rxh8 {[%clk 0:00:34]} 26. gxf5 {[%clk 0:00:14]}  gxf5 {[%clk 0:00:29]} 27. Rd3 {[%clk 0:00:12]}  Ra8 {[%clk 0:00:13]} 28. Rde3 {[%clk 0:00:11]}  e6 {[%clk 0:00:13]} 29. Rd3 {[%clk 0:00:09]}  d5 {[%clk 0:00:14]} 30. Be5 {[%clk 0:00:06]}  Rxa3 {[%clk 0:00:13]} 31. Rg3 {[%clk 0:00:04]}  Ra2 {[%clk 0:00:11]} 32. Rg7 {[%clk 0:00:04]}  Ke7 {[%clk 0:00:11]} 33. Bd4 {[%clk 0:00:04]}  Rxc2 {[%clk 0:00:11]} 0-1


[Site "https://www.chess.com"]

[Event "Titled Tuesday Blitz January 31 Early 2023"]
[White "Ruge, Edison"]
[Black "Melikhov, Evgeny V."]
[WhiteFideId "4401000"]
[BlackFideId "4122046"]
[WhiteElo "2201"]
[BlackElo "2269"]
[Result "1/2-1/2"]
[Round "03"]
[TimeControl "180+2"]
[Date "2023.01.31"]
[WhiteClock "0:00:27"]
[BlackClock "0:00:07"]

1. e4 {[%clk 0:03:00]}  c5 {[%clk 0:02:49]} 2. Nf3 {[%clk 0:03:00]}  d6 {[%clk 0:02:45]} 3. d3 {[%clk 0:03:01]}  Nc6 {[%clk 0:02:40]} 4. g3 {[%clk 0:03:01]}  g6 {[%clk 0:02:40]} 5. Bg2 {[%clk 0:03:02]}  Bg7 {[%clk 0:02:40]} 6. O-O {[%clk 0:03:02]}  e6 {[%clk 0:02:41]} 7. h4 {[%clk 0:03:00]}  h6 {[%clk 0:02:36]} 8. c3 {[%clk 0:02:59]}  Nge7 {[%clk 0:02:35]} 9. h5 {[%clk 0:02:59]}  g5 {[%clk 0:02:35]} 10. Nh2 {[%clk 0:03:00]}  Rb8 {[%clk 0:02:27]} 11. f4 {[%clk 0:02:59]}  f6 {[%clk 0:02:24]} 12. Nd2 {[%clk 0:02:47]}  b5 {[%clk 0:02:23]} 13. Ndf3 {[%clk 0:02:38]}  b4 {[%clk 0:02:16]} 14. c4 {[%clk 0:02:36]}  e5 {[%clk 0:01:53]} 15. fxg5 {[%clk 0:02:33]}  hxg5 {[%clk 0:01:50]} 16. g4 {[%clk 0:02:32]}  Nd4 {[%clk 0:01:39]} 17. Nxd4 {[%clk 0:02:23]}  cxd4 {[%clk 0:01:39]} 18. Rf2 {[%clk 0:02:04]}  Nc6 {[%clk 0:01:37]} 19. Nf1 {[%clk 0:02:02]}  Qd7 {[%clk 0:01:30]} 20. Bf3 {[%clk 0:02:00]}  Nd8 {[%clk 0:01:27]} 21. Ng3 {[%clk 0:01:59]}  Ne6 {[%clk 0:01:26]} 22. Nf5 {[%clk 0:01:58]}  Nf4 {[%clk 0:01:25]} 23. Bxf4 {[%clk 0:01:58]}  gxf4 {[%clk 0:01:25]} 24. Rc1 {[%clk 0:01:52]}  Bf8 {[%clk 0:01:05]} 25. Rg2 {[%clk 0:01:50]}  Rg8 {[%clk 0:00:54]} 26. Nh4 {[%clk 0:01:40]}  Bh6 {[%clk 0:00:46]} 27. Ng6 {[%clk 0:01:35]}  Bg5 {[%clk 0:00:44]} 28. c5 {[%clk 0:01:34]}  dxc5 {[%clk 0:00:40]} 29. Rxc5 {[%clk 0:01:33]}  Ba6 {[%clk 0:00:34]} 30. Rgc2 {[%clk 0:01:30]}  Rc8 {[%clk 0:00:16]} 31. Rxc8+ {[%clk 0:01:28]}  Bxc8 {[%clk 0:00:16]} 32. Rc5 {[%clk 0:01:23]}  Ba6 {[%clk 0:00:12]} 33. Qb3 {[%clk 0:01:21]}  Rg7 {[%clk 0:00:11]} 34. Qxb4 {[%clk 0:01:15]}  Qb7 {[%clk 0:00:11]} 35. Rxe5+ {[%clk 0:01:09]}  fxe5 {[%clk 0:00:10]} 36. Qf8+ {[%clk 0:01:09]}  Kd7 {[%clk 0:00:10]} 37. Qxg7+ {[%clk 0:01:09]}  Kc6 {[%clk 0:00:10]} 38. Qxb7+ {[%clk 0:01:08]}  Kxb7 {[%clk 0:00:09]} 39. Nxe5 {[%clk 0:01:08]}  Kc7 {[%clk 0:00:09]} 40. Be2 {[%clk 0:01:07]}  Kd6 {[%clk 0:00:09]} 41. Nf3 {[%clk 0:01:06]}  Bf6 {[%clk 0:00:08]} 42. g5 {[%clk 0:01:06]}  Bh8 {[%clk 0:00:08]} 43. h6 {[%clk 0:01:05]}  Ke7 {[%clk 0:00:08]} 44. e5 {[%clk 0:01:04]}  Bc8 {[%clk 0:00:07]} 45. Kf2 {[%clk 0:01:01]}  Bf5 {[%clk 0:00:07]} 46. Nxd4 {[%clk 0:01:00]}  Bg6 {[%clk 0:00:06]} 47. Nf3 {[%clk 0:01:00]}  Ke6 {[%clk 0:00:06]} 48. d4 {[%clk 0:01:00]}  Kd5 {[%clk 0:00:05]} 49. b3 {[%clk 0:01:00]}  Ke4 {[%clk 0:00:04]} 50. Bc4 {[%clk 0:00:53]}  Bh5 {[%clk 0:00:04]} 51. e6 {[%clk 0:00:49]}  Bxf3 {[%clk 0:00:02]} 52. e7 {[%clk 0:00:47]}  Bh5 {[%clk 0:00:03]} 53. Bb5 {[%clk 0:00:45]}  Kf5 {[%clk 0:00:03]} 54. e8=Q {[%clk 0:00:43]}  Bxd4+ {[%clk 0:00:03]} 55. Kf1 {[%clk 0:00:41]}  Bxe8 {[%clk 0:00:03]} 56. Bxe8 {[%clk 0:00:41]}  Kxg5 {[%clk 0:00:04]} 57. h7 {[%clk 0:00:41]}  Kh6 {[%clk 0:00:04]} 58. Ke2 {[%clk 0:00:39]}  Kxh7 {[%clk 0:00:04]} 59. Kf3 {[%clk 0:00:40]}  Be3 {[%clk 0:00:04]} 60. Ke4 {[%clk 0:00:36]}  Kg7 {[%clk 0:00:05]} 61. Kd5 {[%clk 0:00:36]}  Kf8 {[%clk 0:00:06]} 62. Bh5 {[%clk 0:00:35]}  Ke7 {[%clk 0:00:06]} 63. Kc6 {[%clk 0:00:35]}  Kf6 {[%clk 0:00:06]} 64. b4 {[%clk 0:00:33]}  Kg5 {[%clk 0:00:06]} 65. Bf3 {[%clk 0:00:33]}  Kh4 {[%clk 0:00:06]} 66. a4 {[%clk 0:00:33]}  Kg3 {[%clk 0:00:06]} 67. Bd5 {[%clk 0:00:33]}  f3 {[%clk 0:00:07]} 68. a5 {[%clk 0:00:32]}  f2 {[%clk 0:00:07]} 69. Bc4 {[%clk 0:00:32]}  Kg2 {[%clk 0:00:07]} 70. b5 {[%clk 0:00:32]}  f1=Q {[%clk 0:00:07]} 71. Bxf1+ {[%clk 0:00:32]}  Kxf1 {[%clk 0:00:07]} 72. b6 {[%clk 0:00:24]}  axb6 {[%clk 0:00:07]} 73. a6 {[%clk 0:00:25]}  b5 {[%clk 0:00:07]} 74. Kxb5 {[%clk 0:00:25]}  Ke2 {[%clk 0:00:07]} 75. Kc6 {[%clk 0:00:26]}  Kd3 {[%clk 0:00:07]} 76. Kb7 {[%clk 0:00:27]}  Kc4 {[%clk 0:00:07]} 77. a7 {[%clk 0:00:27]}  Bxa7 {[%clk 0:00:07]} 1/2-1/2


[Site "https://www.chess.com"]

[Event "Titled Tuesday Blitz January 31 Early 2023"]
[White "Mitrovic, Darko R"]
[Black "Ansh M Shah"]
[WhiteFideId "927023"]
[BlackFideId "25033379"]
[WhiteElo "2220"]
[BlackElo "2171"]
[Result "1/2-1/2"]
[Round "03"]
[TimeControl "180+2"]
[Date "2023.01.31"]
[WhiteClock "0:00:08"]
[BlackClock "0:00:18"]

1. d4 {[%clk 0:02:59]}  Nf6 {[%clk 0:02:59]} 2. Nf3 {[%clk 0:02:59]}  e6 {[%clk 0:03:00]} 3. g3 {[%clk 0:02:59]}  d5 {[%clk 0:03:00]} 4. Bg2 {[%clk 0:02:59]}  Be7 {[%clk 0:03:01]} 5. O-O {[%clk 0:02:59]}  O-O {[%clk 0:03:02]} 6. c4 {[%clk 0:03:00]}  dxc4 {[%clk 0:03:02]} 7. Qa4 {[%clk 0:02:59]}  a6 {[%clk 0:03:02]} 8. Qxc4 {[%clk 0:02:59]}  b5 {[%clk 0:03:02]} 9. Qc2 {[%clk 0:03:00]}  Bb7 {[%clk 0:03:03]} 10. Nbd2 {[%clk 0:02:59]}  Nbd7 {[%clk 0:03:03]} 11. Nb3 {[%clk 0:02:58]}  Rc8 {[%clk 0:03:02]} 12. Nc5 {[%clk 0:02:56]}  Nxc5 {[%clk 0:03:00]} 13. dxc5 {[%clk 0:02:56]}  Be4 {[%clk 0:03:00]} 14. Qc3 {[%clk 0:02:36]}  Nd5 {[%clk 0:02:47]} 15. Qd4 {[%clk 0:02:36]}  f5 {[%clk 0:02:45]} 16. c6 {[%clk 0:02:02]}  Bf6 {[%clk 0:02:44]} 17. Qa7 {[%clk 0:01:53]}  Ra8 {[%clk 0:02:27]} 18. Qc5 {[%clk 0:01:52]}  Qe7 {[%clk 0:02:15]} 19. Qxe7 {[%clk 0:01:51]}  Nxe7 {[%clk 0:02:16]} 20. Bf4 {[%clk 0:01:48]}  Rac8 {[%clk 0:02:14]} 21. Rac1 {[%clk 0:01:14]}  Bxb2 {[%clk 0:02:03]} 22. Rcd1 {[%clk 0:01:13]}  Bxc6 {[%clk 0:01:59]} 23. Be5 {[%clk 0:01:08]}  Bxe5 {[%clk 0:01:56]} 24. Nxe5 {[%clk 0:01:08]}  Bxg2 {[%clk 0:01:57]} 25. Kxg2 {[%clk 0:01:08]}  Rfd8 {[%clk 0:01:55]} 26. Rxd8+ {[%clk 0:01:05]}  Rxd8 {[%clk 0:01:55]} 27. Rc1 {[%clk 0:01:05]}  Nd5 {[%clk 0:01:55]} 28. Rc6 {[%clk 0:01:02]}  Rd6 {[%clk 0:01:56]} 29. Rc5 {[%clk 0:00:56]}  g6 {[%clk 0:01:24]} 30. f3 {[%clk 0:00:56]}  Kg7 {[%clk 0:01:10]} 31. e4 {[%clk 0:00:56]}  Kf6 {[%clk 0:00:41]} 32. exd5 {[%clk 0:00:43]}  Kxe5 {[%clk 0:00:40]} 33. dxe6+ {[%clk 0:00:40]}  Kxe6 {[%clk 0:00:41]} 34. Rxc7 {[%clk 0:00:40]}  Rd2+ {[%clk 0:00:41]} 35. Kh3 {[%clk 0:00:38]}  Rxa2 {[%clk 0:00:42]} 36. Rxh7 {[%clk 0:00:38]}  a5 {[%clk 0:00:40]} 37. Ra7 {[%clk 0:00:34]}  Ra3 {[%clk 0:00:39]} 38. f4 {[%clk 0:00:32]}  Kf6 {[%clk 0:00:38]} 39. Ra6+ {[%clk 0:00:30]}  Kg7 {[%clk 0:00:38]} 40. Kh4 {[%clk 0:00:30]}  Kh6 {[%clk 0:00:38]} 41. h3 {[%clk 0:00:30]}  b4 {[%clk 0:00:37]} 42. g4 {[%clk 0:00:29]}  fxg4 {[%clk 0:00:37]} 43. hxg4 {[%clk 0:00:29]}  Kg7 {[%clk 0:00:37]} 44. Kg5 {[%clk 0:00:28]}  Kf7 {[%clk 0:00:35]} 45. Ra7+ {[%clk 0:00:25]}  Ke6 {[%clk 0:00:36]} 46. Kxg6 {[%clk 0:00:25]}  b3 {[%clk 0:00:33]} 47. f5+ {[%clk 0:00:25]}  Ke5 {[%clk 0:00:33]} 48. f6 {[%clk 0:00:25]}  Ra4 {[%clk 0:00:33]} 49. g5 {[%clk 0:00:13]}  b2 {[%clk 0:00:32]} 50. f7 {[%clk 0:00:12]}  b1=Q+ {[%clk 0:00:32]} 51. Kg7 {[%clk 0:00:11]}  Rf4 {[%clk 0:00:32]} 52. Re7+ {[%clk 0:00:10]}  Kd6 {[%clk 0:00:32]} 53. Re8 {[%clk 0:00:10]}  Qf5 {[%clk 0:00:27]} 54. f8=Q+ {[%clk 0:00:09]}  Qxf8+ {[%clk 0:00:26]} 55. Rxf8 {[%clk 0:00:09]}  Rxf8 {[%clk 0:00:21]} 56. Kxf8 {[%clk 0:00:09]}  a4 {[%clk 0:00:22]} 57. g6 {[%clk 0:00:09]}  a3 {[%clk 0:00:23]} 58. g7 {[%clk 0:00:10]}  a2 {[%clk 0:00:24]} 59. g8=Q {[%clk 0:00:10]}  a1=Q {[%clk 0:00:25]} 60. Qg6+ {[%clk 0:00:09]}  Kc5 {[%clk 0:00:24]} 61. Qf5+ {[%clk 0:00:08]}  Kc6 {[%clk 0:00:24]} 62. Qe6+ {[%clk 0:00:07]}  Kc7 {[%clk 0:00:24]} 63. Qe7+ {[%clk 0:00:07]}  Kb6 {[%clk 0:00:24]} 64. Qd6+ {[%clk 0:00:07]}  Kb7 {[%clk 0:00:25]} 65. Qd7+ {[%clk 0:00:07]}  Kb6 {[%clk 0:00:25]} 66. Qd6+ {[%clk 0:00:07]}  Kb5 {[%clk 0:00:26]} 67. Qd5+ {[%clk 0:00:07]}  Kb4 {[%clk 0:00:26]} 68. Qd6+ {[%clk 0:00:06]}  Kc4 {[%clk 0:00:24]} 69. Qc6+ {[%clk 0:00:05]}  Kd3 {[%clk 0:00:25]} 70. Qd5+ {[%clk 0:00:05]}  Ke3 {[%clk 0:00:25]} 71. Qe6+ {[%clk 0:00:05]}  Kf4 {[%clk 0:00:25]} 72. Qf7+ {[%clk 0:00:04]}  Ke4 {[%clk 0:00:23]} 73. Qe7+ {[%clk 0:00:04]}  Kf5 {[%clk 0:00:21]} 74. Qf7+ {[%clk 0:00:04]}  Ke4 {[%clk 0:00:17]} 75. Qe7+ {[%clk 0:00:04]}  Kf3 {[%clk 0:00:16]} 76. Qf7+ {[%clk 0:00:05]}  Ke2 {[%clk 0:00:16]} 77. Qe7+ {[%clk 0:00:05]}  Kd3 {[%clk 0:00:17]} 78. Qd7+ {[%clk 0:00:05]}  Kc4 {[%clk 0:00:17]} 79. Qc7+ {[%clk 0:00:06]}  Kb5 {[%clk 0:00:17]} 80. Qb7+ {[%clk 0:00:06]}  Kc5 {[%clk 0:00:17]} 81. Qc7+ {[%clk 0:00:07]}  Kd5 {[%clk 0:00:18]} 82. Qd7+ {[%clk 0:00:07]}  Ke4 {[%clk 0:00:18]} 83. Qe7+ {[%clk 0:00:08]} 1/2-1/2


[Site "https://www.chess.com"]